Workbook

Sheet Input
A1: Instructions:
A2: Please fill in the cells highlighted in yellow with information related to your specific plant.
A4: Fact Sheet Attachment
A5: Operation parameters and limitations
A7: Operation parameter
A8: What's the type of the asphalt plant? | D8: =IF(B8="Batch mix plant","Max= 250,000 tons/month (ca. 347 tons/hr)",IF(B8="Drum mix plant","Max= 500,000 tons/month (ca. 694 tons/hr)","")) -> 
A9: Hot Mix Asphalt produced per hour | C9: tons/hr
A10: Maximum hours of operation | B10: =B11/B9 ->  | C10: hr/yr
A11: Asphalt processed per year | C11: ton/yr | D11: =IF(B8="Batch mix plant","Max=400,000 ton/yr",IF(B8="Drum mix plant","Max=850,000 ton/yr","")) -> 
A13: Storage pile information
A14: Acres occupied by storage piles | C14: acre
A15: Storage pile moisture content | C15: %
A17: Dryer information
A18: Oil applied to the material after the Dryer
A19: Control Device that Operates on the Dryer
A20: Dryer Heat Input Rating | C20: MMBtu/hr
A21: Type of Fuel Used in the Dryer
A23: Oil heater information
A24: Rated capacity of hot oil heater | C24: MMBtu/hr
A25: Type of Fuel Used in the oil heater
A27: Generator Engine information
A28: Will the plant be hooked to the grid?
A29: Is the generator engine portable?
A30: Will the plant stay at the same location more than 12 consecutive months?
A32: Fuel Type *
A33: Engine Rating | D33: HP
A34: Engine Heat Input | D34: =IF(A34="Fuel use factor",Sheet2!O1,Sheet2!O2) -> MMBtu/hr
A35: Engine type (only if natural gas)
A36: * If the hot mix asphalt plant will be permitted under the permit-by-rule program and it is considered a stationary engine the only fuel type permitted for use is diesel
A38: Modelling parameters
A39: Dryer Stack
A40: UTM X | C40: m
A41: UTM Y | C41: m
A42: Elevation | C42: m
A43: Stack Height | C43: m
A44: Temperature of Exhaust | C44: C
A45: Exit Velocity of Exhaust | C45: m/s
A46: Inside Diameter of Stack | C46: m
A47: Flow Rate of Exhaust | C47: m3 / s
A49: Generator Engine Stack
A50: UTM X | C50: m
A51: UTM Y | C51: m
A52: Elevation | C52: m
A53: Stack Height | C53: m
A54: Temperature of Exhaust | C54: C
A55: Exit Velocity of Exhaust | C55: m/s
A56: Inside Diameter of Stack | C56: m
A57: Flow Rate of Exhaust | C57: m3 / s
A58: Oil Heater Stack
A59: UTM X | C59: m
A60: UTM Y | C60: m
A61: Elevation | C61: m
A62: Stack Height | C62: m
A63: Temperature of Exhaust | C63: C
A64: Exit Velocity of Exhaust | C64: m/s
A65: Inside Diameter of Stack | C65: m
A66: Flow Rate of Exhaust | C66: m3 / s

Sheet 1) - 2) EPs & Summary
A1: Fact Sheet Attachment
A2: Hot Mix Asphalt Plant: Potential to Emit Summary
A4: Summary of lb/hr total emissions
A5: Pollutant | B5: Storage Pile | C5: Conveyors | D5: Screening | E5: Silo Filling | F5: Loadout | G5: Dryer | H5: Hot oil Heater | I5: Engine | J5: Total
A6: PM | B6: ='3) Storage Pile'!B31 -> 0 | C6: ='4) Conveyors'!B40 -> 0 | D6: =+'5) Screening'!C11 -> 0 | E6: =+'6) Silo Filling'!C9 -> 0 | F6: =+'7) Loadout'!C9 -> 0 | G6: =MAX('8) - 9) Dryer'!C15) -> 0 | H6: =MAX('10) - 11) Hot Oil Heater'!D13) -> 0 | I6: ='13) Engines'!D19 -> 0 | J6: =SUM(B6:I6) -> 0
A7: PM10 | B7: ='3) Storage Pile'!B32 -> 0 | C7: ='4) Conveyors'!B41 -> 0 | D7: =+'5) Screening'!C12 -> 0 | E7: =+'6) Silo Filling'!C10 -> 0 | F7: =+'7) Loadout'!C10 -> 0 | G7: =MAX('8) - 9) Dryer'!C16) -> 0 | H7: =MAX('10) - 11) Hot Oil Heater'!D14) -> 0 | I7: ='13) Engines'!D19 -> 0 | J7: =SUM(B7:I7) -> 0
A8: PM2.5 | B8: ='3) Storage Pile'!B33 -> 0 | C8: ='4) Conveyors'!B42 -> 0 | D8: =+'5) Screening'!C13 -> 0 | E8: =+'6) Silo Filling'!C11 -> 0 | F8: =+'7) Loadout'!C11 -> 0 | G8: =MAX('8) - 9) Dryer'!C17) -> 0 | H8: =MAX('10) - 11) Hot Oil Heater'!D15) -> 0 | I8: ='13) Engines'!D19 -> 0 | J8: 0
A9: SOx | B9: - | C9: - | D9: - | E9: - | F9: - | G9: =MAX('8) - 9) Dryer'!C18) -> 0 | H9: =MAX('10) - 11) Hot Oil Heater'!D16) -> 0 | I9: ='13) Engines'!D21 -> 0 | J9: 0
A10: NOx | B10: - | C10: - | D10: - | E10: - | F10: - | G10: =MAX('8) - 9) Dryer'!C19) -> 0 | H10: =MAX('10) - 11) Hot Oil Heater'!D17) -> 0 | I10: ='13) Engines'!D20 -> 0 | J10: 0
A11: CO | B11: - | C11: - | D11: - | E11: =+'6) Silo Filling'!C12 -> 0 | F11: =+'7) Loadout'!C12 -> 0 | G11: =MAX('8) - 9) Dryer'!C20) -> 0 | H11: =MAX('10) - 11) Hot Oil Heater'!D20) -> 0 | I11: ='13) Engines'!D22 -> 0 | J11: 0
A12: VOC | B12: - | C12: - | D12: - | E12: =+'6) Silo Filling'!C13 -> 0 | F12: =+'7) Loadout'!C13 -> 0 | G12: =MAX('8) - 9) Dryer'!C21) -> 0 | H12: =MAX('10) - 11) Hot Oil Heater'!D18) -> 0 | I12: ='13) Engines'!D23 -> 0 | J12: 0
A13: Pb | B13: - | C13: - | D13: - | E13: - | F13: - | G13: =MAX('8) - 9) Dryer'!C22) -> 0 | H13: =MAX('10) - 11) Hot Oil Heater'!D23) -> 0 | J13: 0
A14: HAP | B14: - | C14: - | D14: - | E14: =+'6) Silo Filling'!C14 -> 0 | F14: =+'7) Loadout'!C14 -> 0 | G14: =MAX('8) - 9) Dryer'!C23) -> 0 | H14: =MAX('10) - 11) Hot Oil Heater'!D21) -> 0 | I14: ='13) Engines'!D30 -> 0 | J14: 0
A15: GHG (mass basis) | B15: - | C15: - | D15: - | E15: - | F15: - | G15: =MAX('8) - 9) Dryer'!C28) -> 0 | H15: =MAX('10) - 11) Hot Oil Heater'!D29) -> 0 | I15: =SUM('13) Engines'!D25:D27) -> 0 | J15: 0
A16: GHG (CO2e basis) | B16: - | C16: - | D16: - | E16: - | F16: - | G16: =MAX('8) - 9) Dryer'!C29) -> 0 | H16: =MAX('10) - 11) Hot Oil Heater'!D30) -> 0 | I16: ='13) Engines'!D25+25*'13) Engines'!D26+298*'13) Engines'!D27 -> 0 | J16: 0
A18: Summary of ton/year total emissions
A19: Pollutant | B19: Storage Pile | C19: Conveyors | D19: Screening | E19: Silo Filling | F19: Loadout | G19: Dryer | H19: Hot oil Heater | I19: Engine | J19: Total*
A20: PM | B20: ='3) Storage Pile'!C31 -> 0 | C20: ='4) Conveyors'!C40 ->  | D20: =+'5) Screening'!D11 ->  | E20: =+'6) Silo Filling'!D9 ->  | F20: =+'7) Loadout'!D9 ->  | G20: =MAX('8) - 9) Dryer'!D15) ->  | H20: =MAX('10) - 11) Hot Oil Heater'!E13) ->  | I20: ='13) Engines'!E19 ->  | J20: =SUM(B20:I20) -> 
A21: PM10 | B21: ='3) Storage Pile'!C32 -> 0 | C21: ='4) Conveyors'!C41 ->  | D21: =+'5) Screening'!D12 ->  | E21: =+'6) Silo Filling'!D10 ->  | F21: =+'7) Loadout'!D10 ->  | G21: =MAX('8) - 9) Dryer'!D16) ->  | H21: =MAX('10) - 11) Hot Oil Heater'!E14) ->  | I21: ='13) Engines'!E19 ->  | J21: =SUM(B21:I21) -> 
A22: PM2.5 | B22: ='3) Storage Pile'!C33 -> 0 | C22: ='4) Conveyors'!C42 ->  | D22: =+'5) Screening'!D13 ->  | E22: =+'6) Silo Filling'!D11 ->  | F22: =+'7) Loadout'!D11 ->  | G22: =MAX('8) - 9) Dryer'!D17) ->  | H22: =MAX('10) - 11) Hot Oil Heater'!E15) ->  | I22: ='13) Engines'!E19 ->  | J22: =SUM(B22:I22) -> 
A23: SOx | B23: - | C23: - | D23: - | E23: - | F23: - | G23: =MAX('8) - 9) Dryer'!D18) ->  | H23: =MAX('10) - 11) Hot Oil Heater'!E16) ->  | I23: ='13) Engines'!E21 ->  | J23: =SUM(B23:I23) -> 
A24: NOx | B24: - | C24: - | D24: - | E24: - | F24: - | G24: =MAX('8) - 9) Dryer'!D19) ->  | H24: =MAX('10) - 11) Hot Oil Heater'!E17) ->  | I24: ='13) Engines'!E20 -> 
A25: CO | B25: - | C25: - | D25: - | E25: =+'6) Silo Filling'!D12 ->  | F25: =+'7) Loadout'!D12 ->  | G25: =MAX('8) - 9) Dryer'!D20) ->  | H25: =MAX('10) - 11) Hot Oil Heater'!E20) ->  | I25: ='13) Engines'!E22 -> 
A26: VOC | B26: - | C26: - | D26: - | E26: =+'6) Silo Filling'!D13 ->  | F26: =+'7) Loadout'!D13 ->  | G26: =MAX('8) - 9) Dryer'!D21) ->  | H26: =MAX('10) - 11) Hot Oil Heater'!E18) ->  | I26: ='13) Engines'!E23 -> 
A27: Pb | B27: - | C27: - | D27: - | E27: - | F27: - | G27: =MAX('8) - 9) Dryer'!D22) ->  | H27: =MAX('10) - 11) Hot Oil Heater'!E23) -> 
A28: HAP | B28: - | C28: - | D28: - | E28: =+'6) Silo Filling'!D14 ->  | F28: =+'7) Loadout'!D14 ->  | G28: =MAX('8) - 9) Dryer'!D23) ->  | H28: =MAX('10) - 11) Hot Oil Heater'!E21) ->  | I28: ='13) Engines'!E30 -> 
A29: GHG (mass basis) | B29: - | C29: - | D29: - | E29: - | F29: - | G29: =MAX('8) - 9) Dryer'!D28) ->  | H29: =MAX('10) - 11) Hot Oil Heater'!E29) ->  | I29: =SUM('13) Engines'!E25:E27) -> 
A30: GHG (CO2e basis) | B30: - | C30: - | D30: - | E30: - | F30: - | G30: =MAX('8) - 9) Dryer'!D29) ->  | H30: =MAX('10) - 11) Hot Oil Heater'!E30) ->  | I30: ='13) Engines'!E25+25*'13) Engines'!E26+298*'13) Engines'!E27 -> 
A31: * Color coding
C32: Above the limits of PbR program
C33: If a regular CP is issued, an operating permit might be required depending on operation
C34: Within acceptable limits
A35: Fact Sheet Attachment
A36: Emission Unit Summary
A38: Process type | B38: Emission Point | C38: Control ID # | D38: Control description | E38: Emission Unit ID # | F38: Emission /Process Description
A39: Storage Pile | B39: EP-01 | C39: - | D39: - | E39: EU-01 | F39: Storage Pile- Wind Erosion, Loading and Unloading
A40: Conveyors | B40: EP-02 | C40: - | D40: - | E40: EU-02 | F40: Gathering, Rap and Slat Conveyors
A41: Screening | B41: EP-03 | C41: - | D41: - | E41: EU-03 | F41: Screening Emissions
A42: Silo Filling | B42: EP-04 | C42: - | D42: - | E42: EU-04 | F42: Storage Silo Filling and Asphalt Storage Tank Emissions
A43: Load-out | B43: EP-05 | C43: - | D43: - | E43: EU-05 | F43: Load-Out Emissions
A44: Dryer | B44: EP-06 | C44: C-01 | D44: =Input!B19 -> 0 | E44: EU-06 | F44: Dryer
A45: Hot Oil Heater | B45: EP-07 | C45: - | D45: - | E45: EU-07 | F45: Hot oil heater emissions
A46: Engine | B46: EP-08 | C46: - | D46: - | E46: EU-08 | F46: Engine
A53: Operation parameters and limitations
A55: ='4) Conveyors'!A4 -> Hot Mix Asphalt produced per hour (tons/hr) = | D55: =Input!B9 -> 0
A56: ='4) Conveyors'!A5 -> Maximum hours of operation (hr/yr) = | D56: =Input!B10 -> 
A57: ='4) Conveyors'!A6 -> Asphalt processed per year (ton/yr) = | D57: =Input!B11 -> 0

Sheet 3) Storage Pile
A1: Fact Sheet Attachment
A2: Storage Pile Emissions: EP-01
A4: Hot Mix Asphalt produced per hour (tons/hr) = | E4: ='1) - 2) EPs & Summary'!D55 -> 0
A5: Aggregate processed per hour (tons/hr) = | E5: =E4*0.95 -> 0 | F5: AP-42 Chapter 11.1 states that aggregate and RAP (if used) constitute over 92% by weight of the total mixture. For these calculations, it is assumed that 95% of the hot mix asphalt produced is aggregate.
A6: Maximum occupancy on pile (hr/yr) = | E6: 8760
A7: Acres occupied by storage piles (acre) = | E7: =Input!B14 -> 0
A8: Storage pile moisture content (%) = | E8: =Input!B15 -> 0
A10: Emissions Source | B10: PM Emission Factor (lb/hr/acre) [1] | C10: PM Emission Rate (lb/hr) | D10: PM10 Emission Rate (lb/hr) [2] | E10: PM2.5 Emission Rate (lb/hr) [2] | F10: PM Emission Rate (tpy) [3] | G10: PM10 Emission rate (tpy) [3] | H10: PM2.5 Emission Rate (tpy) [3]
A11: Storage Pile- Wind Erosion | B11: =1.7*(E14/1.5)*((365-E15)/235)*(E16/15)*(1/24) -> 0.2239873916 | C11: =B11*E7 -> 0 | D11: =C11*0.5 -> 0 | E11: =C11*0.146 -> 0 | F11: =C11*E6/2000 -> 0 | G11: =D11*E6/2000 -> 0 | H11: =E11*E6/2000 -> 0
A12: [1] PM Emission Factor (lb/hr/acre) derived from the following equation taken from the Air Pollution Engineering Manual p.136: E = 1.7 * (s/1.5) * ((365-p)/235) * (f/15) * (1/24)
A13: where: | B13: E = Emission Factor (lb/hr/acre)
B14: s = silt content of aggregate | E14: 1.9 | F14: from AP-42 Table 13.2.4-1, the upper range for Crushed Limestone
B15: p = # days with > .25mm of precipitation per year | E15: 90 | F15: from AP-42 Figure 13.2.2-1, For Nebraska
B16: f = % of time that the unobstructed wind speed exceeds 5.4 m/s at the mean pile height | E16: 32 | F16: %, from Metrological Data, NDEQ
A17: [2] PM10 and PM2.5 emission rates are calculated using the scaling factors found in CEIDARS for Mineral Process Loss- Loading and Unloading Bulk Materials
A18: [3] Emission Rate (tpy) = Emission Rate (lb/hr) * Maximum occupancy on pile (hr/yr) * (1 ton/2000 lb)
A20: Emissions Source | B20: PM Emission Factor (lb/ton) [1] | C20: PM10 Emission Factor (lb/ton) [1] | D20: PM2.5 Emission Factor (lb/ton) [1] | E20: PM Emission Rate (lb/hr) | F20: PM10 Emission Rate (lb/hr) | G20: PM2.5 Emission Rate (lb/hr) | H20: PM Emission Rate (tpy) | I20: PM10 Emission rate (tpy) | J20: PM2.5 Emission Rate (tpy)
A21: Storage Pile- Loading and Unloading | B21: =D26*0.0032*((D24/5)^1.3)/((D25/2)^1.4) -> 0.004266253663 | C21: =D27*0.0032*((D24/5)^1.3)/((D25/2)^1.4) -> 0.002017822679 | D21: =D28*0.0032*((D24/5)^1.3)/((D25/2)^1.4) -> 0.0003055560056 | E21: =B21*E5 -> 0 | F21: =C21*E5 -> 0 | G21: =D21*E5 -> 0 | H21: =E21*E6/2000 -> 0 | I21: =F21*E6/2000 -> 0 | J21: =G21*E6/2000 -> 0
A22: [1] Emission Factors (lb/ton) derived from the following equation in AP-42 Chapter 13.2.4 (Nov. 2006), Equation 1: E = k * (0.0032) * ((U/5)^1.3) / ((M/2)^1.4)
A23: where: | B23: E = Emission Factor (lb/ton)
B24: U = mean wind speed (mph) = | D24: 10 | E24: mph in Nebraska
B25: M = material moisture content = | D25: 2.5 | E25: % given by facility in the form of an input question in this spreadsheet
B26: k = particle size multiplier = | D26: 0.74 | E26: for PM30 from AP-42 Section 13.2.4
B27: k = particle size multiplier = | D27: 0.35 | E27: for PM10 from AP-42 Section 13.2.4
B28: k = particle size multiplier = | D28: 0.053 | E28: for PM2.5 from AP-42 Section 13.2.4
A30: Total Storage Pile Pollutant Emissions | B30: Emissions (lb/hr) | C30: Emissions (tpy)
A31: PM | B31: =E21+C11 -> 0 | C31: =H21+F11 -> 0
A32: PM10 | B32: =F21+D11 -> 0 | C32: =I21+G11 -> 0
A33: PM2.5 | B33: =G21+E11 -> 0 | C33: =J21+H11 -> 0

Sheet 4) Conveyors
A1: Fact Sheet Attachment
A2: Conveyor Emissions: EP-02
A4: Hot Mix Asphalt produced per hour (tons/hr) = | E4: ='1) - 2) EPs & Summary'!D55 -> 0
A5: Maximum hours of operation (hr/yr) = | E5: ='1) - 2) EPs & Summary'!D56 -> 
A6: Asphalt processed per year (ton/yr) = | E6: ='1) - 2) EPs & Summary'!D57 -> 0
A7: Storage pile moisture content (%) = | E7: ='3) Storage Pile'!E8 -> 0
A8: Oil applied to the material after the dryer: | E8: =IF(Input!B18="Yes",1,0) -> 0
B9: (Yes = 1, No = 0)
A10: Pollutant | B10: Emission Factor (lb/ton) [1] | C10: Emission Rate (lb/hr) | D10: Emission Rate (tpy)
A11: Gathering Conveyor
A12: PM | B12: =IF(E7>1.3,F30,F29) -> 0.003 | C12: =B12*$E$4 -> 0 | D12: =C12*($E$6/$E$4)/2000 -> 
A13: PM10 | B13: =IF(E7>1.3,G30,G29) -> 0.0011 | C13: =B13*$E$4 -> 0 | D13: =C13*($E$6/$E$4)/2000 -> 
A14: PM2.5 | B14: =IF(E7>1.3,H30,H29) -> 0.000438 | C14: =B14*$E$4 -> 0 | D14: =C14*($E$6/$E$4)/2000 -> 
A15: Belt Conveyor
A16: PM | B16: =IF(E7>1.3,F30,F29) -> 0.003 | C16: =B16*$E$4 -> 0 | D16: =C16*($E$6/$E$4)/2000 -> 
A17: PM10 | B17: =IF(E7>1.3,G30,G29) -> 0.0011 | C17: =B17*$E$4 -> 0 | D17: =C17*($E$6/$E$4)/2000 -> 
A18: PM2.5 | B18: =IF(E7>1.3,H30,H29) -> 0.000438 | C18: =B18*$E$4 -> 0 | D18: =C18*($E$6/$E$4)/2000 -> 
A19: RAP Conveyor
A20: PM | B20: =F32 -> 0.003 | C20: =B20*$E$4 -> 0 | D20: =C20*($E$6/$E$4)/2000 -> 
A21: PM10 | B21: =G32 -> 0.0011 | C21: =B21*$E$4 -> 0 | D21: =C21*($E$6/$E$4)/2000 -> 
A22: PM2.5 | B22: =H32 -> 0.000438 | C22: 0 | D22: =C22*($E$6/$E$4)/2000 -> 
A23: Slat Conveyor
A24: PM | B24: =IF(E8=1, F34,F35) -> 0.003 | C24: 0 | D24: =C24*($E$6/$E$4)/2000 -> 
A25: PM10 | B25: =IF(E8=1, G34,G35) -> 0.0011 | C25: 0 | D25: =C25*($E$6/$E$4)/2000 -> 
A26: PM2.5 | B26: =IF(E8=1,H34,H35) -> 0.000438 | C26: 0 | D26: =C26*($E$6/$E$4)/2000 -> 
A27: [1] Emission Factors are from AP-42 Chapter 11.19 (August. 2004), Table 11.19.2-2, Conveyor Transfer Point:
A28: Gathering and Belt Conveyor Emission Factors | F28: PM (lb/ton) | G28: PM10 (lb/ton) | H28: PM2.5 (lb/ton) *
B29: If storage pile moisture content is < 1.3%, Emission Factor is: | F29: 0.003 | G29: 0.0011 | H29: =F29*0.146 -> 0.000438
B30: If storage pile moisture content is > 1.3%, Emission Factor is: | F30: 0.00014 | G30: 4.6e-05 | H30: 1.3e-05
A31: RAP Conveyor Emission Factor
B32: Emission Factor is: | F32: 0.003 | G32: 0.0011 | H32: =F32*0.146 -> 0.000438
A33: Slat Conveyor Emission Factor
B34: If oil is applied after the dryer, a 60% control is assumed and the Emission Factor is: | F34: =F35*0.4 -> 0.0012 | G34: =G35*0.4 -> 0.00044 | H34: =H35*0.4 -> 0.0001752
B35: If oil is not applied after the dryer, the Emission Factor is: | F35: 0.003 | G35: 0.0011 | H35: =F35*0.146 -> 0.000438
B36: * Uncontrolled PM2.5 emission factors are derived using the scaling factors found in CEIDARS for Mineral Process Loss- Loading and Unloading Bulk Materials.
A37: [2] Emission Rate (tpy) = Emission Rate (lb/hr) * (asphalt processed per year (ton/yr) / asphalt processed per hour (ton/hr)) * (1 ton/2000 lb)
A39: Total Conveyor Pollutant Emissions | B39: Emissions (lb/hr) | C39: Emissions (tpy)
A40: PM | B40: =SUM(C12,C16,C20,C24) -> 0
A41: PM10 | B41: 0
A42: PM2.5 | B42: 0

Sheet 5) Screening
A1: Fact Sheet Attachment
A2: Screening Emissions: EP-03
A4: Hot Mix Asphalt produced per hour (tons/hr) = | E4: ='1) - 2) EPs & Summary'!D55 -> 0
A5: Aggregate processed per hour (tons/hr) = | E5: =E4*0.95 -> 0 | F5: AP-42 Chapter 11.1 states that aggregate and RAP (if used) constitute over 92% by weight of the total mixture. For these calculations, it is assumed that 95% of the hot mix asphalt produced is aggregate.
A6: Maximum hours of operation (hr/yr) = | E6: ='1) - 2) EPs & Summary'!D56 -> 
A7: Asphalt processed per year (ton/yr) = | E7: =E6*E4 -> 
A8: Storage pile moisture content (%) = | E8: ='3) Storage Pile'!E8 -> 0
A10: Pollutant | B10: Emission Factor (lb/ton) [1] | C10: Emission Rate (lb/hr) | D10: Emission Rate (tpy)
A11: PM | B11: =IF($E$8>1.3,E17,E16) -> 0.025 | C11: =B11*$E$5 -> 0 | D11: =C11*($E$7/$E$4)/2000 -> 
A12: PM10 | B12: =IF($E$8>1.3,F17,F16) -> 0.0087 | C12: =B12*$E$5 -> 0 | D12: =C12*($E$7/$E$4)/2000 -> 
A13: PM2.5 | B13: =IF($E$8>1.3,G17,G16) -> 0.00365 | C13: =B13*$E$5 -> 0
A14: [1] Emission Factors are from AP-42 Chapter 11.19 (August. 2004), Table 11.19.2-2, Screening:
E15: PM (lb/ton) | F15: PM10 (lb/ton) | G15: PM2.5 (lb/ton) *
A16: If storage pile moisture content is < 1.3%, Emission Factor is: | E16: 0.025 | F16: 0.0087 | G16: =E16*0.146 -> 0.00365
A17: If storage pile moisture content is > 1.3%, Emission Factor is: | E17: 0.0022 | F17: 0.00074 | G17: 5e-05
A18: * The uncontrolled (moisture content ≤ 1.3%) PM2.5 emission factor is derived using the scaling factor found in CEIDARS for Mineral Process Loss- Loading and Unloading Bulk Materials.

Sheet 6) Silo Filling
A1: Fact Sheet Attachment
A2: Storage Silo Filling and Asphalt Storage Tank Emissions: EP-04
A4: Hot Mix Asphalt produced per hour (tons/hr) = | E4: ='1) - 2) EPs & Summary'!D55 -> 0
A5: Maximum hours of operation (hr/yr) = | E5: ='1) - 2) EPs & Summary'!D56 -> 
A6: Asphalt processed per year (ton/yr) = | E6: =E4*E5 -> 
A8: Pollutant | B8: Emission Factor (lb/ton) [1] | C8: Emission Rate (lb/hr) | D8: Emission Rate (tpy)
A9: PM | B9: =0.000332+(0.00105)*(0.5)*(EXP(0.0251*(325+460)-20.43)) -> 0.000585889279 | C9: =B9*$E$4 -> 0 | D9: =C9*($E$6/$E$4)/2000 -> 
A10: PM10 | B10: =0.000332+(0.00105)*(0.5)*(EXP(0.0251*(325+460)-20.43)) -> 0.000585889279 | C10: =B10*$E$4 -> 0 | D10: =C10*($E$6/$E$4)/2000 -> 
A11: PM2.5 | B11: =0.000332+(0.00105)*(0.5)*(EXP(0.0251*(325+460)-20.43)) -> 0.000585889279 | C11: 0
A12: CO | B12: =0.00488*(0.5)*(EXP(0.0251*(325+460)-20.43)) -> 0.001179980649 | C12: =B12*$E$4 -> 0
A13: VOC | B13: =0.0504*0.5*(EXP(0.0251*(325+460)-20.43)) -> 0.01218668539 | C13: =B13*$E$4 -> 0
A14: HAP | B14: =((0.00105*0.5*(EXP(0.0251*(325+460)-20.43)))*0.114)+((0.0504*0.5*(EXP(0.0251*(325+460)-20.43)))*0.013) -> 0.0001873702879 | C14: =B14*$E$4 -> 0
A15: [1] Emission factors for PM, PM10, PM2.5, CO, and VOC derived from the equations in AP-42 Chapter 11.1 (Apr. 2004), Table 11.1-14 for Silo Filling, using the default values as discussed in footnote "a" of the table. The emission factor for HAP was derived from Tables 11.1-15 and 11.1-16 for Speciation Profile for Silo Filling and Asphalt Storage Tanks Emissions.

Sheet 7) Loadout
A1: Fact Sheet Attachment
A2: Loadout Emissions: EP-05
A4: Hot Mix Asphalt produced per hour (tons/hr) = | E4: ='1) - 2) EPs & Summary'!D55 -> 0
A5: Maximum hours of operation (hr/yr) = | E5: ='1) - 2) EPs & Summary'!D56 -> 
A6: Asphalt processed per year (ton/yr) = | E6: =E5*E4 -> 
A8: Pollutant | B8: Emission Factor (lb/ton) [1] | C8: Emission Rate (lb/hr) | D8: Emission Rate (tpy)
A9: PM | B9: =0.000181+(0.00141)*(0.5)*(EXP(((0.0251)*(325+460)-20.43))) -> 0.0005219370318 | C9: =B9*$E$4 -> 0 | D9: =C9*($E$6/$E$4)/2000 -> 
A10: PM10 | B10: =0.000181+(0.00141)*(0.5)*(EXP(((0.0251)*(325+460)-20.43))) -> 0.0005219370318 | C10: =B10*$E$4 -> 0 | D10: =C10*($E$6/$E$4)/2000 -> 
A11: PM2.5 | B11: =0.000181+(0.00141)*(0.5)*(EXP(((0.0251)*(325+460)-20.43))) -> 0.0005219370318 | C11: 0
A12: CO [2] | B12: =(0.00558*(0.5)*(EXP(((0.0251*(325+460)-20.43)))))+(0.0011*0.32) -> 0.001701240168 | C12: =B12*$E$4 -> 0
A13: VOC [2] | B13: =(0.0172*0.5*(EXP(((0.0251*(325+460)-20.43)))))+0.0011 -> 0.00525894819 | C13: =B13*$E$4 -> 0
A14: HAP | B14: =((0.00141*0.5*(EXP(0.0251*(325+460)-20.43)))*(0.0593+0.0118))+((0.0172*0.5*(EXP(0.0251*(325+460)-20.43)))*0.015) -> 8.662484581e-05 | C14: =B14*$E$4 -> 0
A15: [1] Emission factors derived from the equations in AP-42 Chapter 11.1 (Apr. 2004), Table 11.1-14 for Drum-mix or batch plant load-out, using the default values as discussed in footnote "a" of the table. The emission factor for HAP was derived from Tables 11.1-15 and Table 11.1-16; this includes HAP emissions from loadout and those that occur after the trucks are loaded (referred to as yard emissions).
A16: [2] In addition to loadout, emissions of CO and TOC occur after the trucks are loaded (referred to as yard emissions). The emission factors for yard emissions as found in AP-42 Chapter 11.1, page 11.1-9 are accounted for in the CO and VOC emission factors above. (0.0011 lb/ton for TOC and (0.0011 * 0.32) lb/ton for CO.)

Sheet 8) - 9) Dryer
A1: Fact Sheet Attachment
A2: Dryer Emissions: EP-06
A4: Hot Mix Asphalt produced per hour (tons/hr) = | F4: ='1) - 2) EPs & Summary'!$D$55 -> 0
A5: Maximum hours of operation (hr/yr) = | F5: ='1) - 2) EPs & Summary'!$D$56 -> 
A6: Asphalt processed per year (ton/yr) = | F6: =F4*F5 -> 
A7: Storage pile moisture content (%) = | F7: ='3) Storage Pile'!$E$8 -> 0
A8: Control Device that Operates on the Dryer: | F8: =IF(Input!$B$19="Baghouse",1,IF(Input!$B$19="Wet Scrubber",2,3)) -> 3
B9: (Baghouse=1, Wet Scrubber=2, No Control=3)
A10: Dryer Heat Input Rating (MMBtu/hr) = | F10: =Input!$B$20 -> 0
A11: Type of Fuel Used in the Dryer | F11: =IF(Input!$B$21="Natural Gas",1,IF(Input!$B$21="No. 2 Fuel Oil (diesel)",2,IF(Input!$B$21="Waste Oil",3,IF(Input!$B$21="Coal",4,IF(Input!$B$21="No. 5 Fuel Oil",5,IF(Input!$B$21="No. 6 Fuel Oil",6,IF(Input!$B$21="Propane",7,8))))))) -> 8
A12: (Natural Gas = 1, No. 2 Fuel Oil (diesel) = 2, Waste Oil = 3, Coal = 4, No. 5 Fuel Oil = 5, No. 6 Fuel Oil = 6, Propane = 7, Other = 8)
A14: Pollutant | B14: Emission Factor | C14: Emission Rate (lb/hr) | D14: Emission Rate (tpy)
A15: PM | B15: =IF(F8=1,D34,IF(F8=2,D33,D32)) -> 28 | C15: =B15*$F$4 -> 0 | D15: =C15*($F$6/$F$4)/2000 -> 
A16: PM10 | B16: =IF(F8=1,E34,IF(F8=2,E33,E32)) -> 6.5 | C16: =B16*$F$4 -> 0 | D16: =C16*($F$6/$F$4)/2000 -> 
A17: PM2.5 | B17: =IF(F8=1,F34,IF(F8=2,F33,F32)) -> 1.5654 | C17: 0
A18: SOx | B18: =IF(F11=1,C40,IF(F11=2,C41,IF(F11=3,C42,IF(F11=4,C43,IF(F11=5,C44,IF(F11=6,C45,IF(F11=7,C46))))))) -> FALSE | C18: 0
A19: NOx | B19: =IF(F11=1,D40,IF(F11=2,D41,IF(F11=3,D42,IF(F11=4,D43,IF(F11=5,D44,IF(F11=6,D45,IF(F11=7,D46))))))) -> FALSE | C19: 0 | D19: =C19*($F$6/$F$4)/2000 -> 
A20: CO | B20: =IF(F11=1,E40,IF(F11=2,E41,IF(F11=3,E42,IF(F11=4,E43,IF(F11=5,E44,IF(F11=6,E45,IF(F11=7,E46))))))) -> FALSE | C20: 0 | D20: =C20*($F$6/$F$4)/2000 -> 
A21: VOC | B21: =IF(F11=1,F40,IF(F11=2,F41,IF(F11=3,F42,IF(F11=4,F43,IF(F11=5,F44,IF(F11=6,F45,IF(F11=7,F46))))))) -> FALSE | C21: 0
A22: Pb | B22: =IF(F11=1,G40,IF(F11=2,G41,IF(F11=3,G42,IF(F11=4,G43,IF(F11=5,G44,IF(F11=6,G45,IF(F11=7,G46))))))) -> FALSE | C22: 0
A23: HAP | B23: =IF(F11=1,H40,IF(F11=2,H41,IF(F11=3,H42,IF(F11=4,H43,IF(F11=5,H44,IF(F11=6,H45,IF(F11=7,H46))))))) -> FALSE | C23: =B23*$F$4 -> 0
A24: Green House Gases
A25: CO2 | B25: =IF(F11=1,C49,IF(F11=2,C50,IF(F11=3,C51,IF(F11=4,C52,IF(F11=5,C53,IF(F11=6,C54,IF(F11=7,C55))))))) -> FALSE | C25: =B25*$F$10*2.20462 -> 0
A26: CH4 | B26: =IF(F11=1,D49,IF(F11=2,D50,IF(F11=3,D51,IF(F11=4,D52,IF(F11=5,D53,IF(F11=6,D54,IF(F11=7,D55))))))) -> FALSE | C26: =B26*$F$10*2.20462 -> 0
A27: N2O | B27: =IF(F11=1,E49,IF(F11=2,E50,IF(F11=3,E51,IF(F11=4,E52,IF(F11=5,E53,IF(F11=6,E54,IF(F11=7,E55))))))) -> FALSE | C27: 0
A28: GHG (mass basis) | B28: - | C28: =SUM(C25:C27) -> 0 | D28: =SUM(D25:D27) -> 
A29: GHG (CO2e basis) | B29: - | C29: =C25+C26*25+C27*298 -> 0 | D29: =C29*($F$6/$F$4)/2000 -> 
D31: PM (lb/ton) | E31: PM10 (lb/ton)* | F31: PM2.5 (lb/ton) **
A32: If the dryer is uncontrolled, the emission factor is: | D32: =IF(Input!$B$8="Batch mix plant",32,28) -> 28 | E32: =IF(Input!$B$8="Batch mix plant",4.5,6.5) -> 6.5 | F32: =IF(Input!$B$8="Batch mix plant",0.2871,1.5654) -> 1.5654
A33: If the dryer is controlled by a venturi or wet scrubber, the emission factor is: | D33: =IF(Input!$B$8="Batch mix plant",0.14,0.045) -> 0.045 | E33: =IF(Input!$B$8="Batch mix plant",0.14,0.045) -> 0.045 | F33: =E33*0.146 -> 0.00657
A34: If the dryer is controlled by a fabric filter, the emission factor is: | D34: =IF(Input!$B$8="Batch mix plant",0.042,0.033) -> 0.033 | E34: =IF(Input!$B$8="Batch mix plant",0.027,0.023) -> 0.023 | F34: =IF(Input!$B$8="Batch mix plant",0.0254,0.0223) -> 0.0223
A35: * All PM data are derived from AP-42 tables 11.1-1 through 4. PM10 assumed to equal total PM if no data are available for PM10 emissions
A36: ** The wet scrubber PM2.5 emission factor is derived using the scaling factor found in CEIDARS for Mineral Process Loss- Loading and Unloading Bulk Materials. Both other values are derived from AP42 Table 11-1-2 + Inorganic and Organic condensable PM from Table 11-1-1
C39: SOx (lb/ton) | D39: NOx (lb/ton) | E39: CO (lb/ton) | F39: VOC (lb/ton) | G39: Pb (lb/ton) | H39: HAP (lb/ton)
A40: If the dryer combusts natural gas, the emission factor is: | C40: =IF(Input!$B$8="Batch mix plant",C63,C72) -> 0.0034 | D40: =IF(Input!$B$8="Batch mix plant",D63,D72) -> 0.026 | E40: =IF(Input!$B$8="Batch mix plant",E63,E72) -> 0.13 | F40: =IF(Input!$B$8="Batch mix plant",F63,F72) -> 0.032 | G40: =IF(Input!$B$8="Batch mix plant",G63,G72) -> 0.00054 | H40: =IF(Input!$B$8="Batch mix plant",H63,H72) -> 0.005477
A41: If the dryer combusts No. 2 fuel oil (diesel), the emission factor is: | C41: =IF(Input!$B$8="Batch mix plant",C64,C73) -> 0.011 | D41: =IF(Input!$B$8="Batch mix plant",D64,D73) -> 0.055 | E41: =IF(Input!$B$8="Batch mix plant",E64,E73) -> 0.13 | F41: =IF(Input!$B$8="Batch mix plant",F64,F73) -> 0.032 | G41: =IF(Input!$B$8="Batch mix plant",G64,G73) -> 0.00054 | H41: =IF(Input!$B$8="Batch mix plant",H64,H73) -> 0.008877
A42: If the dyer combusts waste oil, the emission factor is: | C42: =IF(Input!$B$8="Batch mix plant",C65,C74) -> 0.058 | D42: =IF(Input!$B$8="Batch mix plant",D65,D74) -> 0.055 | E42: =IF(Input!$B$8="Batch mix plant",E65,E74) -> 0.13 | F42: =IF(Input!$B$8="Batch mix plant",F65,F74) -> 0.032 | G42: =IF(Input!$B$8="Batch mix plant",G65,G74) -> 0.00054 | H42: =IF(Input!$B$8="Batch mix plant",H65,H74) -> 0.010177
A43: If the dryer combusts coal, the emission factor is: | C43: =IF(Input!$B$8="Batch mix plant",C66,C75) -> 0.19 | D43: =IF(Input!$B$8="Batch mix plant",D66,D75) -> 0.19 | E43: =IF(Input!$B$8="Batch mix plant",E66,E75) -> 275 | F43: =IF(Input!$B$8="Batch mix plant",F66,F75) -> 0 | G43: =IF(Input!$B$8="Batch mix plant",G66,G75) -> 0.00054 | H43: =IF(Input!$B$8="Batch mix plant",H66,H75) -> 0
A44: If the dryer combusts No. 5 fuel oil, the emission factor is: | C44: =IF(Input!$B$8="Batch mix plant",C67,C76) -> 0.0426274 | D44: =IF(Input!$B$8="Batch mix plant",D67,D76) -> 0.02882 | E44: =IF(Input!$B$8="Batch mix plant",E67,E76) -> 0.00262 | F44: =IF(Input!$B$8="Batch mix plant",F67,F76) -> 0.00039824 | G44: =IF(Input!$B$8="Batch mix plant",G67,G76) -> 0.00054 | H44: =IF(Input!$B$8="Batch mix plant",H67,H76) -> 0.000177
A45: If the dryer combusts No. 6 fuel oil, the emission factor is: | C45: =IF(Input!$B$8="Batch mix plant",C68,C77) -> 0.0426274 | D45: =IF(Input!$B$8="Batch mix plant",D68,D77) -> 0.02882 | E45: =IF(Input!$B$8="Batch mix plant",E68,E77) -> 0.00262 | F45: =IF(Input!$B$8="Batch mix plant",F68,F77) -> 0.036 | G45: =IF(Input!$B$8="Batch mix plant",G68,G77) -> 0.00054 | H45: =IF(Input!$B$8="Batch mix plant",H68,H77) -> 0.000177
A46: If the dryer combusts propane fuel, the emission factor is: | C46: =IF(Input!$B$8="Batch mix plant",C69,C78) ->  | D46: =IF(Input!$B$8="Batch mix plant",D69,D78) ->  | E46: =IF(Input!$B$8="Batch mix plant",E69,E78) ->  | F46: =IF(Input!$B$8="Batch mix plant",F69,F78) ->  | G46: =IF(Input!$B$8="Batch mix plant",G69,G78) -> 0.00054 | H46: =IF(Input!$B$8="Batch mix plant",H69,H78) -> 0.005477
C48: CO2 (Kg/MMBtu) | D48: CH4 (Kg/MMBtu) | E48: N2O (Kg/MMBtu)
A49: If the dryer combusts natural gas, the emission factor is: | C49: 53.06 | D49: 0.001 | E49: 0.0001
A50: If the dryer combusts No. 2 fuel oil (diesel), the emission factor is: | C50: 73.96 | D50: 0.003 | E50: 0.0006
A51: If the dyer combusts waste oil, the emission factor is: | C51: 74 | D51: 0.003 | E51: 0.0006
A52: If the dryer combusts coal, the emission factor is: | C52: 113.67 | D52: =0.011 -> 0.011 | E52: =0.0016 -> 0.0016
A53: If the dryer combusts No. 5 fuel oil, the emission factor is: | C53: 72.93 | D53: 0.003 | E53: 0.0006
A54: If the dryer combusts No. 6 fuel oil, the emission factor is: | C54: 75.1 | D54: 0.003 | E54: 0.0006
A55: If the dryer combusts propane fuel, the emission factor is: | C55: 62.87 | D55: 0.003 | E55: 0.0006
A62: batch | C62: SOx (lb/ton) | D62: NOx (lb/ton) | E62: CO (lb/ton) | F62: VOC (lb/ton) | G62: Pb (lb/ton) | H62: HAP (lb/ton)
A63: If the dryer combusts natural gas, the emission factor is: | C63: 0.0046 | D63: 0.025 | E63: 0.4 | F63: 0.0082 | G63: 8.9e-07 | H63: =0.0000246+0.00779 -> 0.0078146
A64: If the dryer combusts No. 2 fuel oil (diesel), the emission factor is: | C64: 0.088 | D64: 0.12 | E64: 0.4 | F64: 0.0082 | G64: 8.9e-07 | H64: =0.0000246+0.00779 -> 0.0078146
A65: If the dyer combusts waste oil, the emission factor is: | C65: 0.088 | D65: 0.12 | E65: 0.4 | F65: 0.000524 | G65: 1e-05 | H65: =0.0000246+0.00789 -> 0.0079146
A66: If the dryer combusts coal, the emission factor is: | C66: 0.043 | D66: 0.19 | E66: 275
A67: If the dryer combusts No. 5 fuel oil, the emission factor is: | C67: 0.0426274 | D67: 0.02882 | E67: 0.00262 | F67: 0.00039824 | G67: 1e-05 | H67: =0.0000246+0.00789 -> 0.0079146
A68: If the dryer combusts No. 6 fuel oil, the emission factor is: | C68: 0.0426274 | D68: 0.02882 | E68: 0.00262 | F68: 0.036 | G68: 1e-05 | H68: 0.0079146
A69: If the dryer combusts propane fuel, the emission factor is: | C69: =1.5/91.5*$F$10/$F$4 ->  | D69: =13/91.5*$F$10/$F$4 ->  | E69: =7.5/91.5*$F$10/$F$4 ->  | F69: =1/91.5*$F$10/$F$4 ->  | G69: 8.9e-07 | H69: =0.0000246+0.00779 -> 0.0078146
A71: drum | C71: SOx (lb/ton) | D71: NOx (lb/ton) | E71: CO (lb/ton) | F71: VOC (lb/ton) | G71: Pb (lb/ton) | H71: HAP (lb/ton)
A72: If the dryer combusts natural gas, the emission factor is: | C72: 0.0034 | D72: 0.026 | E72: 0.13 | F72: 0.032 | G72: 0.00054 | H72: =0.0053+0.000177 -> 0.005477
A73: If the dryer combusts No. 2 fuel oil (diesel), the emission factor is: | C73: 0.011 | D73: 0.055 | E73: 0.13 | F73: 0.032 | G73: 0.00054 | H73: =0.0087+0.000177 -> 0.008877
A74: If the dyer combusts waste oil, the emission factor is: | C74: 0.058 | D74: 0.055 | E74: 0.13 | F74: 0.032 | G74: 0.00054 | H74: =0.01+0.000177 -> 0.010177
A75: If the dryer combusts coal, the emission factor is: | C75: 0.19 | D75: 0.19 | E75: 275 | G75: 0.00054
A76: If the dryer combusts No. 5 fuel oil, the emission factor is: | C76: 0.0426274 | D76: 0.02882 | E76: 0.00262 | F76: 0.00039824 | G76: 0.00054 | H76: =0.000177 -> 0.000177
A77: If the dryer combusts No. 6 fuel oil, the emission factor is: | C77: 0.0426274 | D77: 0.02882 | E77: 0.00262 | F77: 0.036 | G77: 0.00054 | H77: =0.000177 -> 0.000177
A78: If the dryer combusts propane fuel, the emission factor is: | C78: =1.5/91.5*$F$10/$F$4 ->  | D78: =13/91.5*$F$10/$F$4 ->  | E78: =7.5/91.5*$F$10/$F$4 ->  | F78: =1/91.5*$F$10/$F$4 ->  | G78: 0.00054 | H78: =0.0053+0.000177 -> 0.005477
A80: All emission factors are from AP-42 Ch. 11.1 except Propane from AP-42 Ch. 1.5

Sheet 10) - 11) Hot Oil Heater
A1: Fact Sheet Attachment
A2: Hot Oil Heater Emissions EP-07
A4: Hot Mix Asphalt produced per hour (tons/hr) = | E4: ='1) - 2) EPs & Summary'!D55 -> 0
A5: Maximum hours of hot oil heater operation per year (hr/yr) = | E5: ='1) - 2) EPs & Summary'!D56 -> 
A6: Rated capacity of hot oil heater (MMBtu/hr) = | E6: =Input!B24 -> 0
A7: Maximum Fuel Rate (gal/hr) [MMBtu/hr / 0.153 gal/MMBtu] = | E7: =E6/0.153 -> 0
A8: Maximum Fuel Rate (106 scf/hr) [MMBtu/hr / 1100 106 scf/MMBtu] = | E8: =E6/1100 -> 0
A9: Type of Fuel Used in the hot oil heater | E9: =IF(Input!B25="Natural Gas",1,IF(Input!B25="No. 2 Fuel Oil (diesel)",2,3)) -> 3
A10: (Natural Gas = 1, No. 2 Fuel Oil (diesel) = 2, Other = 3)
A12: Pollutant | B12: =IF($E$9=1,"Emission Factor (lb/106 scf)",IF($E$9=2,"Emission Factor (lb/103 gal)")) -> FALSE | C12: Emission Factor Source [1] | D12: Emission Rate (lb/hr) | E12: Emission Rate (tpy) [3]
A13: PM | B13: =IF($E$9=1,1.9,IF($E$9=2,2)) -> FALSE | C13: =IF($E$9=1,"Table 1.4-2",IF($E$9=2,"Table 1.3-1")) -> FALSE | D13: =IF($E$9=1,B13*$E$8,IF($E$9=2,B13*$E$7/1000)) -> FALSE | E13: =D13*$E$5/2000 -> 
A14: PM10 | B14: =IF($E$9=1,7.6,IF($E$9=2,3.3)) -> FALSE | C14: =IF($E$9=1,"Table 1.4-2",IF($E$9=2,"Tables 1.3-1 and 1.3-2")) -> FALSE | D14: FALSE | E14: =D14*$E$5/2000 -> 
A15: PM2.5 | B15: =IF($E$9=1,7.6,IF($E$9=2,3.3)) -> FALSE | C15: =IF($E$9=1,"Table 1.4-2",IF($E$9=2,"Tables 1.3-1 and 1.3-2")) -> FALSE | D15: FALSE
A16: SOx | B16: =IF($E$9=1,0.6,IF($E$9=2,144)) -> FALSE | C16: =IF($E$9=1,"Table 1.4-2",IF($E$9=2,"Table 1.3-1")) -> FALSE | D16: FALSE
A17: NOx | B17: =IF($E$9=1,100,IF($E$9=2,20)) -> FALSE | C17: =IF($E$9=1,"Table 1.4-1",IF($E$9=2,"Table 1.3-1")) -> FALSE | D17: FALSE
A18: VOC | B18: =IF($E$9=1,5.5,IF($E$9=2,0.34)) -> FALSE | C18: =IF($E$9=1,"Table 1.4-2",IF($E$9=2,"Table 1.3-3")) -> FALSE | D18: FALSE
B19: =IF($E$9=1,"Emission Factor (lb/106 scf)",IF($E$9=2,"Emission Factor (lb/gal)")) -> FALSE
A20: CO | B20: =IF($E$9=1,84,IF($E$9=2,0.0012)) -> FALSE | C20: =IF($E$9=1,"Table 1.4-1",IF($E$9=2,"Table 11.1-13")) -> FALSE | D20: =IF($E$9=1,B20*$E$8,IF($E$9=2,B20*$E$7)) -> FALSE | E20: =D20*$E$5/2000 -> 
A21: HAP | B21: =IF($E$9=1,1.88,IF($E$9=2,0.000023)) -> FALSE | C21: =IF($E$9=1,"Table 1.4-3",IF($E$9=2,"Table 11.1-13")) -> FALSE | D21: FALSE | E21: =D21*$E$5/2000 -> 
B22: =IF($E$9=1,"Emission Factor (lb/106 scf)",IF($E$9=2,"Emission Factor (lb/10 12 Btu)")) -> FALSE
A23: Pb | B23: =IF($E$9=1,0.0005,IF($E$9=2,9)) -> FALSE | C23: =IF($E$9=1,"Table 1.4-2",IF($E$9=2,"Table 1.3-10")) -> FALSE | D23: =IF($E$9=1,B23*$E$8,IF($E$9=2,B23*$E$6/1000000)) -> FALSE | E23: =D23*$E$5/2000 -> 
A24: Greenhouse Gases
B25: Emission Factor (kg/MMBtu) | C25: Emission Factor Source [2] | D25: Emission Rate (lb/hr) | E25: Emission Rate (tpy) [3]
A26: CO2 | B26: =IF($E$9=1,53.06,IF($E$9=2,73.96)) -> FALSE | C26: 40 CFR 98, Subpart C, Tables 1 | D26: =B26*$E$6*2.20462 -> 0 | E26: =D26*$E$5/2000 -> 
A27: CH4 | B27: =IF($E$9=1,0.001,IF($E$9=2,0.003)) -> FALSE | C27: 40 CFR 98, Subpart C, Tables 2 | D27: =B27*$E$6*2.20462 -> 0 | E27: =D27*$E$5/2000 -> 
A28: N2O | B28: =IF($E$9=1,0.0001,IF($E$9=2,0.0006)) -> FALSE | D28: =B28*$E$6*2.20462 -> 0 | E28: =D28*$E$5/2000 -> 
A29: GHG (mass basis) | B29: =B26+B27+B28 -> 0 | D29: =B29*E6*2.20462 -> 0 | E29: =D29*$E$5/2000 -> 
A30: GHG (CO2e) | B30: =B26+B27*25*B28*298 -> 0 | D30: =B30*E6*2.20462 -> 0 | E30: =D30*$E$5/2000 -> 
A31: [1] Emission Factors are from AP-42, Chapter 1.3 and 1.4 (May 2010) for Boilers < 100 MMBtu/hr and Chapter 11.1 (Apr. 2004), for No. 2 fuel oil and natural gas. The emission factors that require a sulfur content input are calculated using 1%, which is the maximum sulfur content of fuel allowed by Chapter 42, Section 011.06B.
A32: [2] Emission Factors for GHGs are summations of the CO2, CH4, and N2O emission factors for Distillate Fuel Oil No. 2 from 40 CFR Part 98.
A33: [3] Emission Rate (tpy) = Emission Rate (lb/hr) * Maximum hours of hot oil heater operation per year (hr/yr) * (1 ton/2000 lb)

Sheet 12) Chapter 20
A1: Fact Sheet Attachment
A2: Ch. 20 Emission Limitations
A4: Title 129, Chapter 20, Section 001
A5: Emission Point ID | B5: Description | E5: Design Throughput | F5: CH. 20 Limit | G5: Max. Emissions
E6: tph | F6: lb/hr | G6: lb/hr
A7: ='1) - 2) EPs & Summary'!B39 -> EP-01 | B7: ='1) - 2) EPs & Summary'!F39 -> Storage Pile- Wind Erosion, Loading and Unloading | E7: ='3) Storage Pile'!$E$4 -> 0 | F7: =IF(E7<30,4.1*E7^0.67,55*(E7^0.11)-40) -> 0 | G7: ='1) - 2) EPs & Summary'!B6 -> 0
A8: ='1) - 2) EPs & Summary'!B40 -> EP-02 | B8: ='1) - 2) EPs & Summary'!F40 -> Gathering, Rap and Slat Conveyors | E8: ='3) Storage Pile'!$E$4 -> 0 | F8: =IF(E8<30,4.1*E8^0.67,55*(E8^0.11)-40) -> 0 | G8: ='1) - 2) EPs & Summary'!C6 -> 0
A9: ='1) - 2) EPs & Summary'!B41 -> EP-03 | B9: ='1) - 2) EPs & Summary'!F41 -> Screening Emissions | E9: ='3) Storage Pile'!$E$4 -> 0 | F9: 0 | G9: ='1) - 2) EPs & Summary'!D6 -> 0
A10: ='1) - 2) EPs & Summary'!B42 -> EP-04 | B10: ='1) - 2) EPs & Summary'!F42 -> Storage Silo Filling and Asphalt Storage Tank Emissions | E10: ='3) Storage Pile'!$E$4 -> 0 | F10: =IF(E10<30,4.1*E10^0.67,55*(E10^0.11)-40) -> 0 | G10: ='1) - 2) EPs & Summary'!E6 -> 0
A11: ='1) - 2) EPs & Summary'!B43 -> EP-05 | B11: ='1) - 2) EPs & Summary'!F43 -> Load-Out Emissions | E11: ='3) Storage Pile'!$E$4 -> 0 | F11: 0 | G11: ='1) - 2) EPs & Summary'!F6 -> 0
A12: ='1) - 2) EPs & Summary'!B44 -> EP-06 | B12: ='1) - 2) EPs & Summary'!F44 -> Dryer | E12: ='3) Storage Pile'!$E$4 -> 0 | F12: =IF(E12<30,4.1*E12^0.67,55*(E12^0.11)-40) -> 0 | G12: ='1) - 2) EPs & Summary'!G6 -> 0
A13: ='1) - 2) EPs & Summary'!B45 -> EP-07 | B13: ='1) - 2) EPs & Summary'!F45 -> Hot oil heater emissions | E13: ='3) Storage Pile'!$E$4 -> 0 | F13: =IF(E13<30,4.1*E13^0.67,55*(E13^0.11)-40) -> 0 | G13: ='1) - 2) EPs & Summary'!H6 -> 0
A14: ='1) - 2) EPs & Summary'!B46 -> EP-08 | B14: ='1) - 2) EPs & Summary'!F46 -> Engine | E14: ='3) Storage Pile'!$E$4 -> 0 | F14: =IF(E14<30,4.1*E14^0.67,55*(E14^0.11)-40) -> 0 | G14: ='1) - 2) EPs & Summary'!I6 -> 0
A15: a Where applicable, design throughput is estimated based on the lowest throughput rate. This ensures the most conservative limit for each emission point category.
A17: b Permitted emission are calculated to be the total lb/hr emissions expected for all emission points in every category.
A20: Title 129, Chapter 20, Section 002
A21: Total Heat Input (MMBtu/hr) | D21: Maximum Allowable Emissions of PM (lbs/MMBtu)
A23: 10 or less | D23: 0.6
A24: Between 10 and 10,000 | D24: 1.026/I0.233
D25: Where I = total heat input in MMBtu/hr.
A26: 10,000 or more | D26: 0.12
A28: Emission Point | B28: Emission Unit | C28: Description | E28: Rating | F28: Allowable PM | G28: Max. Emissions
E29: MMBtu/hr | F29: lb/MMBtu | G29: lb/MMBtu
A30: ='1) - 2) EPs & Summary'!B44 -> EP-06 | B30: ='1) - 2) EPs & Summary'!E44 -> EU-06 | C30: ='1) - 2) EPs & Summary'!A44 -> Dryer | D30: ='1) - 2) EPs & Summary'!E44 -> EU-06 | E30: ='8) - 9) Dryer'!F10 -> 0 | F30: =IF(E30<=10,0.6,IF(E30<=10000,1.026/(E30^0.233),0.12)) -> 0.6 | G30: ='8) - 9) Dryer'!C15/'8) - 9) Dryer'!F10 -> 
A31: ='1) - 2) EPs & Summary'!B45 -> EP-07 | B31: ='1) - 2) EPs & Summary'!E45 -> EU-07 | C31: ='1) - 2) EPs & Summary'!A45 -> Hot Oil Heater | D31: ='1) - 2) EPs & Summary'!E45 -> EU-07 | E31: ='10) - 11) Hot Oil Heater'!E6 -> 0 | F31: =IF(E31<=10,0.6,IF(E31<=10000,1.026/(E31^0.233),0.12)) -> 0.6 | G31: ='10) - 11) Hot Oil Heater'!B13*'10) - 11) Hot Oil Heater'!E7/1000/'10) - 11) Hot Oil Heater'!E6 -> 
A32: ='1) - 2) EPs & Summary'!B46 -> EP-08 | B32: ='1) - 2) EPs & Summary'!E46 -> EU-08 | C32: ='1) - 2) EPs & Summary'!A46 -> Engine | D32: ='1) - 2) EPs & Summary'!E46 -> EU-08 | E32: ='13) Engines'!G7 -> 0 | F32: =IF(E32<=10,0.6,IF(E32<=10000,1.026/(E32^0.233),0.12)) -> 0.6 | G32: ='13) Engines'!D19/'13) Engines'!G6 -> 

Sheet 13) Engines
A1: Fact Sheet Attachment
A2: Engine EP-08 | K2: Criteria Pollutants | L2: 2-Stroke Lean Burn Engine | M2: 4-Stroke Lean Burn Engine | N2: 4-Stroke Rich Burn Engine | O2: Gasoline | P2: Diesel
K3: PM/PM10/PM2.5 | L3: =0.0384+0.00991 -> 0.04831 | M3: =0.0000771+0.00991 -> 0.0099871 | N3: =0.00991+0.0095 -> 0.01941 | O3: 0.1 | P3: 0.07
A4: Non-Road determination | G4: =IF(Input!B29="The generator is portable on its own",IF(Input!B30="No",1,2),2) -> 2 | H4: 1= non road, 2 = stationary | K4: NOx [3] | L4: 3.17 | M4: 4.08 | N4: 2.21 | O4: 1.63 | P4: 4.41
A5: Engine Rating (hp) | G5: =Input!B33 -> 0 | H5: HP | K5: SO2 | L5: 0.000588 | M5: 0.000588 | N5: 0.000588 | O5: 0.084 | P5: 0.29
A6: =Input!A34 -> Engine Heat Input | G6: =Input!B34 -> 0 | H6: =Input!D34 -> MMBtu/hr | K6: CO [3,5] | L6: 0.386 | M6: 0.317 | N6: 3.72 | O6: 0.99 | P6: 0.95
A7: Engine Heat Input | G7: =IF(A6="Fuel use factor",G5*G6/1000000,G6) -> 0 | H7: MMBtu/hr | K7: VOC [3,5] | L7: 0.12 | M7: 0.118 | N7: 0.0296 | O7: =0.07+2.1+0.09+0.69+0.15 -> 3.1 | P7: =0.35+0.01+0.07 -> 0.43
A8: Fuel use factor | G8: =IF(A6="Fuel use factor",G6,G6/G5*1000000) ->  | H8: BTU/HP-hr | K8: Greenhouse Gases
A9: Maximum Fuel Capacity (MMscf/yr) Natural gas [MMBtu/hr x hr/yr / 1100 106 scf/MMBtu] | G9: =G7*G10/1100 ->  | K9: CO2 | L9: 53.06 | M9: 53.06 | N9: 53.06 | O9: 75.04 | P9: 73.96
A10: Operating Hours: | G10: =IF(G4=1,0,IF(Input!B28="Yes. Generator will be used only in emergency situations",500,Input!B10)) ->  | K10: Methane [4] | L10: 0.001 | M10: 0.001 | N10: 0.001 | O10: 0.003 | P10: 0.003
A11: Type of Fuel Used in the Engine | G11: =IF(Input!B32="Natural Gas",1,IF(Input!B32="No. 2 Fuel Oil (diesel)",2,3)) -> 3 | K11: N2O [4] | L11: 0.0001 | M11: 0.0001 | N11: 0.0001 | O11: 0.0006 | P11: 0.0006
A12: (Natural Gas = 1, No. 2 Fuel Oil (diesel) = 2, Gasoline = 3) | K12: Hazardous air pollutants
A13: Engine Type | G13: =IF(Input!B35="2-Stroke Lean Burn Engine",1,IF(Input!B35="4-Stroke Lean Burn Engine",2,IF(Input!B35="4-Stroke Rich Burn Engine",3,4))) -> 4
A14: (2-Stroke Lean Burn Engine = 1, 4-Stroke Lean Burn Engine = 2, 4-Stroke Rich Burn Engine = 3, I don’t know =4)
K15: Highest HAP | L15: 0.0709 | M15: 0.0528 | N15: 0.0205 | O15: 0.00258 | P15: 0.00258
A16: Pollutant | B16: Emission Factor | C16: Units | D16: Potential Uncontrolled Emissions | K16: Total Haps | L16: 0.1537178225 | M16: 0.071928288 | N16: 0.03241808 | O16: 0.0064536 | P16: 0.0064536
D17: (lb/hr) | E17: (tpy)
A18: Criteria Pollutants | K18: All emissions factors are from AP-42 Chapters 3.2 and 3.3
A19: PM/PM10/PM2.5 | B19: =IF($G$11=1,IF($G$13=1,L3,IF($G$13=2,M3,IF($G$13=3,N3,MAX(L3:N3)))),IF($G$11=2,P3,O3)) -> 0.1 | C19: lb/MMBtu | D19: =IF(G4=1,0,$G$7*B19) -> 0 | E19: =D19*$G$10*0.0005 -> 
A20: NOx | B20: =IF($G$11=1,IF($G$13=1,L4,IF($G$13=2,M4,IF($G$13=3,N4,MAX(L4:N4)))),IF($G$11=2,P4,O4)) -> 1.63 | C20: lb/MMBtu | D20: =IF(G4=1,0,$G$7*B20) -> 0 | E20: =D20*$G$10*0.0005 -> 
A21: SO2 | B21: =IF($G$11=1,IF($G$13=1,L5,IF($G$13=2,M5,IF($G$13=3,N5,MAX(L5:N5)))),IF($G$11=2,P5,O5)) -> 0.084 | C21: lb/MMBtu | D21: =IF(G4=1,0,$G$7*B21) -> 0 | E21: =D21*$G$10*0.0005 -> 
A22: CO | B22: =IF($G$11=1,IF($G$13=1,L6,IF($G$13=2,M6,IF($G$13=3,N6,MAX(L6:N6)))),IF($G$11=2,P6,O6)) -> 0.99 | C22: lb/MMBtu | D22: =IF(G4=1,0,$G$7*B22) -> 0 | E22: =D22*$G$10*0.0005 -> 
A23: VOC | B23: =IF($G$11=1,IF($G$13=1,L7,IF($G$13=2,M7,IF($G$13=3,N7,MAX(L7:N7)))),IF($G$11=2,P7,O7)) -> 3.1 | C23: lb/MMBtu | D23: =IF(G4=1,0,$G$7*B23) -> 0 | E23: =D23*$G$10*0.0005 -> 
A24: Greenhouse Gases
A25: CO2 | B25: =IF($G$11=1,IF($G$13=1,L9,IF($G$13=2,M9,IF($G$13=3,N9,MAX(L9:N9)))),IF($G$11=2,P9,O9)) -> 75.04 | C25: kg CO2/MMBtu | D25: =IF(G4=1,0,B25*$G$7*2.20462) -> 0 | E25: =D25*$G$10*0.0005 -> 
A26: Methane | B26: =IF($G$11=1,IF($G$13=1,L10,IF($G$13=2,M10,IF($G$13=3,N10,MAX(L10:N10)))),IF($G$11=2,P10,O10)) -> 0.003 | C26: kg CO2/MMBtu | D26: =IF(G4=1,0,B26*$G$7*2.20462) -> 0 | E26: =D26*$G$10*0.0005 -> 
A27: N2O | B27: =IF($G$11=1,IF($G$13=1,L11,IF($G$13=2,M11,IF($G$13=3,N11,MAX(L11:N11)))),IF($G$11=2,P11,O11)) -> 0.0006 | C27: kg CO2/MMBtu | D27: =IF(G4=1,0,B27*$G$7*2.20462) -> 0 | E27: =D27*$G$10*0.0005 -> 
A28: Hazardous air pollutants
A29: Highest HAP | B29: =IF($G$11=1,IF($G$13=1,L15,IF($G$13=2,M15,IF($G$13=3,N15,MAX(L15:N15)))),IF($G$11=2,P15,O15)) -> 0.00258 | C29: lb/MMBtu | D29: =IF(G4=1,0,$G$7*B29) -> 0 | E29: =D29*$G$10*0.0005 -> 
A30: Total HAPs | B30: =IF($G$11=1,IF($G$13=1,L16,IF($G$13=2,M16,IF($G$13=3,N16,MAX(L16:N16)))),IF($G$11=2,P16,O16)) -> 0.0064536 | C30: lb/MMBtu | D30: =IF(G4=1,0,$G$7*B30) -> 0 | E30: =D30*$G$10*0.0005 -> 

Sheet Sheet2 (hidden)
A1: Length Units | B1: Temperature | C1: Velocity | D1: Flow rate | F1: Yes | G1: Natural Gas | H1: Baghouse | I1: Yes. Generator will be used only in emergency situations | J1: The generator is portable on its own | K1: Batch mix plant | L1: =IF(Input!B8="Batch mix plant",347,IF(Input!B8="Drum mix plant",694,"")) ->  | M1: Natural Gas | N1: Fuel use factor | O1: BTU/HP-hr | P1: 2-Stroke Lean Burn Engine | Q1: Natural Gas
A2: m | B2: C | C2: m/s | D2: m3 / s | F2: No | G2: No. 2 Fuel Oil (diesel) | H2: Wet Scrubber | I2: Yes, when available. Otherwise the generator will be used. | J2: The generator is physically attached to another part of the plant | K2: Drum mix plant | L2: =IF(Input!B8="Batch mix plant",400000,IF(Input!B8="Drum mix plant",850000,"")) ->  | M2: No. 2 Fuel Oil (diesel) | N2: Engine Heat Input | O2: MMBtu/hr | P2: 4-Stroke Lean Burn Engine | Q2: No. 2 Fuel Oil (diesel)
A3: ft | B3: F | C3: ft/s | D3: ft3 / s | G3: Waste Oil | H3: No Control | I3: No. It will depend solely on the generator | M3: Other | P3: 4-Stroke Rich Burn Engine | Q3: Gasoline
B4: K | G4: No. 5 Fuel Oil | P4: I don’t know
G5: No. 6 Fuel Oil
G6: Propane
G7: Other
G8: Coal
